bitfinex-derivatives/quotes_SOLF0:USTF0_20251125
["timestamp","ask_amount","ask_price","bid_price","bid_amount"]
[1764043590025,0.04921442,138.08,138.05,3.02621273]
[1764043591523,0.04921442,138.08,138.05,9.54771273]
[1764043591714,0.04921442,138.08,138.06,2.98]
[1764043596524,1.89921442,138.08,138.06,2.98]
[1764043597427,0.04921442,138.08,138.06,2.98]
[1764043602232,0.04921442,138.08,138.07,2.98]
[1764043622055,9.9404702,138.15,138.09,3.04]
[1764043622056,1.9,138.15,138.09,3.04]
[1764043622256,5.23983684,138.14,138.09,3.04]
[1764043622548,1.9,138.15,138.09,3.04]
[1764043622754,5.20221928,138.14,138.12,3.04]
[1764043622955,0.05289996,138.14,138.12,3.08919213]
[1764043623147,0.05289996,138.14,138.12,9.60739213]
[1764043623358,0.05289996,138.14,138.13,3.04]
[1764043623852,6.71011541,138.22,138.16,3.04]
[1764043624153,1.95,138.21,138.16,3.04]
[1764043624852,1.95,138.21,138.17,0.04816008]
[1764043625053,1.95,138.21,138.17,3.08816008]
[1764043625259,1.95,138.2,138.17,3.08816008]
[1764043625554,5.19044603,138.22,138.17,3.08816008]
[1764043625750,1.95,138.22,138.17,3.08816008]
[1764043627159,1.95,138.22,138.18,3.04]
[1764043627657,1.95,138.22,138.17,0.04816008]
[1764043628058,1.95,138.21,138.17,0.04816008]
[1764043628859,103.2846,138.21,138.17,0.04816008]
[1764043629154,1.95,138.2,138.17,0.04816008]
[1764043630063,6.5152,138.19,138.17,0.04816008]
[1764043630352,1.95,138.18,138.1,3.23035479]
[1764043630559,1.95,138.18,138.09,3.04]
[1764043630560,1.9,138.17,138.09,3.04]
[1764043630756,1.9,138.14,138.09,3.04]
[1764043631261,1.9,138.13,138.09,3.04]
[1764043631559,1.95058735,138.12,138.1,0.05394697]
[1764043632253,0.05058735,138.12,138.1,3.09394697]
[1764043636146,1.95058735,138.12,138.1,0.05394697]
[1764043637156,1.9,138.11,138.1,0.05394697]
[1764043638357,1.9,138.09,138.06,3.18]
[1764043638552,7.08198786,138.12,138.06,3.18]
[1764043638756,1.9,138.12,138.06,3.18]
[1764043639354,0.05383379,138.1,138.08,0.04998364]
[1764043639760,1.95383379,138.1,138.08,0.04998364]
[1764043643560,8.47323379,138.1,138.08,0.04998364]
[1764043643759,1.9,138.09,138.08,0.04998364]
[1764043644057,1.9,138.09,138.04,3.18]
[1764043644966,1.9,138.09,138.05,3.23326249]
[1764043645176,1.95048146,138.08,138.05,3.23326249]
[1764043648962,0.05048146,138.08,138.05,3.23326249]
[1764043649363,1.95048146,138.08,138.05,3.23326249]
[1764043650274,0.05048146,138.08,138.05,3.23326249]
[1764043654779,0.05048146,138.08,138.05,9.75466249]
[1764043654972,0.05048146,138.08,138.06,3.18]
[1764043658074,1.95048146,138.08,138.05,0.05326249]
[1764043658471,1.95048146,138.08,138.05,3.23326249]
[1764043659074,0.05048146,138.08,138.05,3.23326249]
[1764043662275,0.05048146,138.08,138.07,3.18]
[1764043678185,1.9,138.14,138.09,2.94]
[1764043678389,7.15228444,138.13,138.09,2.94]
[1764043678583,5.20228444,138.12,138.09,2.94]
[1764043678782,5.20228444,138.11,138.09,2.94]
[1764043678989,1.95,138.13,138.09,2.94]
[1764043679190,7.20698217,138.12,138.1,0.05025739]
[1764043679391,5.20228355,138.11,138.1,0.05025739]
[1764043679791,7.15228355,138.11,138.1,0.05025739]
[1764043680994,5.20228355,138.11,138.1,0.05025739]
[1764043683700,7.15228355,138.11,138.1,0.05025739]
[1764043685802,1.95,138.11,138.1,0.05025739]
[1764043686200,7.14855613,138.11,138.1,0.05025739]
[1764043686790,7.14855613,138.11,138.06,40.0]
[1764043686791,1.95,138.09,138.06,42.94]
[1764043686995,1.95,138.09,138.06,2.94]
[1764043687698,2.00539396,138.09,138.06,2.98719238]
[1764043688199,7.14571801,138.08,138.06,0.04719238]
[1764043688396,2.00539396,138.09,138.06,2.98719238]
[1764043688602,7.1458212,138.08,138.06,0.04719238]
[1764043688801,8.4704,138.08,138.06,0.04719238]
[1764043689103,1.95,138.07,138.06,0.04719238]
[1764043692497,7.14589602,138.07,138.06,0.04719238]
[1764043692697,1.95,138.07,138.06,0.04719238]
[1764043693303,7.14563979,138.07,138.06,0.04719238]
[1764043694009,1.95,138.05,138.02,2.94]
[1764043694510,8.472,138.05,138.02,2.94]
[1764043694816,1.99712429,138.05,138.02,2.99310734]
[1764043696210,6.5222,138.04,138.02,2.99310734]
[1764043699306,8.4722,138.04,138.02,2.99310734]
[1764043699711,1.95,138.03,138.02,0.05310734]
[1764043700108,1.95,138.02,137.98,3.09]
[1764043700511,6.524,138.0,137.98,3.09]
[1764043700717,1.95,138.02,137.98,3.09]
[1764043700914,103.4102,138.04,137.98,3.09]
[1764043701115,0.04665253,138.01,138.0,3.09]
[1764043702207,0.04665253,138.01,137.96,3.09]
[1764043703318,0.04665253,138.01,137.98,3.09]
[1764043706615,1.99665253,138.01,137.98,3.09]
[1764043708020,8.52045253,138.01,137.98,3.09]
[1764043708721,1.95,138.0,137.98,3.09]
[1764043708916,1.95,138.0,137.97,3.14289576]
[1764043710321,0.04665253,138.01,137.97,3.14289576]
[1764043710726,1.99665253,138.01,137.97,3.14289576]
[1764043712522,0.04665253,138.01,137.97,9.66819576]
[1764043712724,0.04665253,138.01,137.98,3.09]
[1764043713424,1.99665253,138.01,137.98,3.09]
[1764043721123,0.04665253,138.01,137.98,3.09]
[1764043724334,0.04665253,138.01,137.98,9.6148]
[1764043724933,0.04665253,138.01,137.99,3.09]
[1764043727032,2.00665253,138.01,137.99,3.09]
[1764043730637,2.00665253,138.01,137.97,0.05289576]
[1764043730638,1.96,137.98,137.97,0.05289576]
[1764043730840,4.02696151,137.98,137.97,0.05289576]
[1764043731443,1.96,137.96,137.93,3.18]
[1764043732453,2.0096025,137.96,137.93,3.2312536]
[1764043733049,0.0496025,137.96,137.93,3.2312536]
[1764043733557,2.0096025,137.96,137.93,3.2312536]
[1764043734448,0.0496025,137.96,137.93,3.2312536]
[1764043740463,1.96,137.95,137.93,3.2312536]
[1764043741066,8.5355025,137.96,137.93,3.2312536]
[1764043741265,2.0096025,137.96,137.93,3.2312536]
[1764043741868,0.0496025,137.96,137.93,3.2312536]
[1764043742560,2.0096025,137.96,137.93,3.2312536]
[1764043744372,0.0496025,137.96,137.93,9.7583536]
[1764043744557,0.0496025,137.96,137.94,3.13]
[1764043744763,0.0496025,137.96,137.94,9.6568]
[1764043744963,0.0496025,137.96,137.95,3.13]
[1764043745667,9.94783771,138.04,137.97,3.13]
[1764043745668,1.96,138.02,137.97,3.13]
[1764043745857,1.96,138.06,137.99,3.13]
[1764043746177,1.96,138.03,137.95,3.13]
[1764043746475,0.04738628,138.0,137.98,0.05536805]
[1764043746779,0.0549017,138.0,137.98,3.18536805]
[1764043749074,2.0149017,138.0,137.98,3.18536805]
[1764043750977,0.0549017,138.0,137.98,3.18536805]
[1764043762879,1.96,138.04,137.98,3.18536805]
[1764043763078,1.96,138.06,137.98,3.18536805]
[1764043763280,5.18194035,138.05,137.98,3.13]
[1764043763483,108.13891541,138.08,138.03,2.91]
[1764043763484,8.481,138.07,138.03,2.91]
[1764043763673,5.18150278,138.06,138.03,2.91]
[1764043763874,0.04931901,138.06,138.03,2.96352545]
[1764043764075,1.96,138.05,138.03,0.05352545]
[1764043764275,0.04931901,138.06,138.03,0.05352545]
[1764043764276,7.1411665,138.04,138.03,0.05352545]
[1764043766286,1.96,138.04,138.03,0.05352545]
[1764043766879,6.5216,138.05,138.03,2.96352545]
[1764043767978,8.4816,138.05,138.03,2.96352545]
[1764043768588,8.4816,138.05,138.03,0.05352545]
[1764043768785,1.96,138.04,138.03,0.05352545]
[1764043774694,1.96,138.02,137.99,2.91]
[1764043775692,2.00704049,138.02,137.99,2.957586]
[1764043776086,8.53014049,138.02,137.99,2.957586]
[1764043780700,1.96,138.0,137.99,0.047586]
[1764043783402,1.96,138.0,137.93,21.85021387]
[1764043783403,1.96,137.98,137.95,2.91]
[1764043784303,8.4853,137.98,137.95,2.91]
[1764043784503,8.5386356,137.98,137.95,2.96399941]
[1764043787889,1.96,137.97,137.95,0.05399941]
[1764043788106,0.0533356,137.98,137.95,3.17399941]
[1764043789616,0.0533356,137.98,137.97,3.12]
[1764043790711,1.96,138.03,137.99,3.12]
[1764043790901,7.1431959,138.02,137.99,3.12]
[1764043791097,1.96,138.02,137.99,3.12]
[1764043791299,1.96,138.02,137.97,3.12]
[1764043791709,1.96,138.0,137.98,0.05365038]
[1764043791905,1.96,138.0,137.98,3.17365038]
[1764043792108,2.01239271,138.01,137.98,3.17365038]
[1764043792608,0.05239271,138.01,137.98,3.17365038]
[1764043794107,0.05239271,138.01,137.98,9.69845038]
[1764043794298,0.05239271,138.01,137.99,3.12]
[1764043795404,2.01239271,138.01,137.99,3.12]
[1764043796513,0.05239271,138.01,137.99,3.12]
[1764043797815,0.05239271,138.01,137.99,9.6443]
[1764043798506,0.05239271,138.01,138.0,3.17]
[1764043803408,2.01239271,138.01,137.99,3.17]
[1764043803618,0.05239271,138.01,137.99,3.17]
[1764043804905,2.01239271,138.01,137.98,3.22365038]
[1764043805504,1.96,138.0,137.98,0.05365038]
[1764043806109,1.96,138.0,137.98,3.22365038]
[1764043806913,8.484,138.0,137.98,3.22365038]
[1764043808107,1.96,137.99,137.98,0.05365038]
[1764043810412,9.2125636,137.99,137.98,0.05365038]
[1764043810615,9.2125636,137.99,137.93,24.8]
[1764043810616,1.96,137.97,137.93,3.17]
[1764043811509,8.59485419,137.99,137.93,3.17]
[1764043811709,8.59485419,137.99,137.96,3.17]
[1764043811710,0.04709655,137.97,137.96,3.17]
[1764043812809,1.96,138.02,137.96,3.17]
[1764043813109,1.96,138.02,137.98,3.17]
[1764043813920,0.05115187,138.01,138.0,3.17]
[1764043814418,2.01115187,138.01,137.99,0.05093764]
[1764043814615,8.53475187,138.01,137.99,0.05093764]
[1764043814823,1.96,138.0,137.99,0.05093764]
[1764043815609,8.53475187,138.01,137.99,0.05093764]
[1764043816719,1.96,138.0,137.99,0.05093764]
[1764043822625,2.00115187,138.01,137.99,3.20093764]
[1764043823722,0.05115187,138.01,137.99,9.72493764]
[1764043823926,0.05115187,138.01,138.0,3.15]
[1764043825024,0.05115187,138.01,137.99,0.05093764]
[1764043825025,1.95,138.0,137.99,0.05093764]
[1764043825424,7.13837687,138.0,137.99,0.05093764]
[1764043839940,5.18837687,138.0,137.99,3.20093764]
[1764043840544,0.05115187,138.01,137.99,9.72503764]
[1764043841234,0.05115187,138.01,138.0,3.15]
[1764043843038,17.64742039,138.07,138.02,3.15]
[1764043843238,13.46628455,138.1,138.02,3.15]
[1764043843239,7.19141468,138.06,138.02,3.15]
[1764043843439,2.0,138.04,137.99,3.15]
[1764043843740,2.0,138.04,138.02,6.523]
[1764043844239,2.0,138.04,138.02,0.05117811]
[1764043844240,2.05549848,138.04,138.02,0.05117811]
[1764043844448,7.18694407,138.03,138.02,0.05117811]
[1764043847836,5.18694407,138.03,138.02,3.10117811]
[1764043848036,2.06549848,138.04,138.02,3.10117811]
[1764043848539,0.05549848,138.04,138.02,3.10117811]
[1764043849146,2.06549848,138.04,138.02,3.10117811]
[1764043849847,0.05549848,138.04,138.02,3.10117811]
[1764043851444,0.05549848,138.04,138.03,3.05]
[1764043857055,2.06549848,138.04,138.02,0.05117811]
[1764043857443,2.06549848,138.04,138.02,3.11117811]
[1764043860151,2.06549848,138.04,138.02,0.05117811]
[1764043860458,7.19230958,138.03,138.02,0.05117811]
[1764043861154,0.05549848,138.04,138.02,3.11117811]
[1764043861349,2.01,138.09,138.03,3.06]
[1764043861558,5.18281391,138.08,138.03,3.06]
[1764043861752,8.5297,138.1,138.05,3.06]
[1764043861950,5.18306994,138.09,138.05,3.06]
[1764043862165,5.18306994,138.08,138.06,3.06]
[1764043862345,0.04739285,138.08,138.06,3.10729288]
[1764043862750,0.04739285,138.08,138.07,3.06]
[1764043863248,8.72989736,138.15,138.08,3.06]
[1764043863559,13.70962539,138.14,138.1,3.06]
[1764043863855,5.18192539,138.13,138.1,3.06]
[1764043864054,8.5277,138.14,138.1,3.06]
[1764043864359,0.04807435,138.13,138.11,3.11285346]
[1764043866957,2.05807435,138.13,138.11,3.11285346]
[1764043870261,2.05807435,138.13,138.11,0.05285346]
[1764043871260,2.05807435,138.13,138.11,3.11285346]
[1764043874063,0.04807435,138.13,138.11,3.11285346]
[1764043874264,2.05807435,138.13,138.11,3.11285346]
[1764043874466,2.05807435,138.13,138.11,0.05285346]
[1764043874667,2.05807435,138.13,138.11,3.11285346]
[1764043876763,2.05807435,138.13,138.11,0.05285346]
[1764043877068,2.0,138.12,138.11,0.05285346]
[1764043878962,2.0,138.08,138.04,2.95]
[1764043879155,2.0,138.09,138.04,2.95]
[1764043879870,2.0,138.09,138.06,2.95]
[1764043879871,0.05228687,138.08,138.06,2.95]
[1764043891266,0.05228687,138.08,138.07,2.95]
[1764043896679,2.05228687,138.08,138.06,2.95]
[1764043897573,2.05228687,138.08,138.05,3.00405437]
[1764043900781,2.05228687,138.08,138.05,0.05405437]
[1764043900782,2.0,138.06,138.05,0.05405437]
[1764043900978,2.0,138.07,138.05,3.00405437]
[1764043901172,2.05228687,138.08,138.05,3.00405437]
[1764043901980,0.05228687,138.08,138.05,3.00405437]
[1764043902793,0.05228687,138.08,138.05,9.52555437]
[1764043902990,0.05228687,138.08,138.06,2.95]
[1764043911289,2.06228687,138.08,138.05,9.50555437]
[1764043911689,2.06228687,138.08,138.05,2.98405437]
[1764043913100,8.58248687,138.08,138.05,2.98405437]
[1764043913507,2.01,138.07,138.05,0.05405437]
[1764043913899,7.20976265,138.06,138.05,0.05405437]
[1764043914200,2.06228687,138.08,138.05,2.98405437]
[1764043914506,7.21031477,138.07,138.05,2.98405437]
[1764043914692,2.01,138.07,138.05,0.05405437]
[1764043915193,2.01,138.06,138.05,0.05405437]
[1764043915593,7.21035,138.06,138.05,0.05405437]
[1764043916502,7.21035,138.06,138.02,2.88]
[1764043916503,2.01,138.04,138.02,2.88]
[1764043917397,2.05699154,138.04,138.02,2.92699807]
[1764043918795,0.04699154,138.04,138.02,2.92699807]
[1764043920510,6.56909154,138.04,138.02,2.92699807]
[1764043920699,6.56909154,138.04,138.02,0.04699807]
[1764043920700,2.01,138.03,138.02,0.04699807]
[1764043924408,0.04699154,138.04,138.02,2.92699807]
[1764043926909,8.57909154,138.04,138.02,0.04699807]
[1764043927107,2.01,138.03,138.02,0.04699807]
[1764043929001,2.05699154,138.04,138.02,0.04699807]
[1764043929206,0.04699154,138.04,138.02,2.92699807]
[1764043929800,2.05699154,138.04,138.02,2.92699807]
[1764043931608,8.57909154,138.04,138.02,2.92699807]
[1764043932416,2.01,138.03,138.02,0.04699807]
[1764043934715,6.56909154,138.04,138.02,0.04699807]
[1764043934921,8.57909154,138.04,138.02,0.04699807]
[1764043935108,8.57909154,138.04,138.02,2.92699807]
[1764043935821,0.04699154,138.04,138.02,2.92699807]
[1764043936917,2.05699154,138.04,138.02,2.92699807]
[1764043939010,8.57919154,138.04,138.02,2.92699807]
[1764043941813,8.57919154,138.04,138.02,0.04699807]
[1764043942012,8.57919154,138.04,138.02,3.10699807]
[1764043945624,2.01,138.03,138.02,0.04699807]
[1764043948826,0.04699154,138.04,138.02,3.10699807]
[1764043949618,0.04699154,138.04,138.02,43.10699807]
[1764043949812,0.04699154,138.04,138.02,3.10699807]
[1764043950920,0.04699154,138.04,138.03,3.06]
[1764043951320,8.5303,138.08,138.03,3.06]
[1764043951724,2.01,138.07,138.03,3.06]
[1764043952325,0.04838397,138.06,138.03,3.06]
[1764043953830,2.05838397,138.06,138.03,3.06]
[1764043957327,0.04838397,138.06,138.03,3.06]
[1764043960526,0.04838397,138.06,138.03,43.06]
[1764043960725,0.04838397,138.06,138.04,3.06]
[1764043961635,0.04838397,138.06,138.04,9.5819]
[1764043961836,0.04838397,138.06,138.05,3.06]
[1764043965141,2.05838397,138.06,138.03,3.06]
[1764043965931,2.05838397,138.06,138.02,3.10699807]
[1764043966136,2.01,138.05,138.02,3.10699807]
[1764043971845,2.05838397,138.06,138.02,3.10699807]
[1764043977643,0.04838397,138.06,138.03,2.88]
[1764043978148,0.04838397,138.06,138.03,4.94941214]
[1764043978447,0.04838397,138.06,138.04,2.88]
[1764043979153,0.04838397,138.06,138.05,2.88]
[1764043984051,2.05838397,138.06,138.03,2.88]
[1764043984846,2.05838397,138.06,138.02,2.92699807]
[1764043985444,8.57968397,138.06,138.02,2.92699807]
[1764043985749,2.01,138.05,138.02,2.92699807]
[1764043988349,8.57968397,138.06,138.02,2.92699807]
[1764043991659,6.71792819,138.1,138.02,2.92699807]
[1764043991855,8.72792819,138.13,138.05,2.88]
[1764043992152,8.97752303,138.14,138.05,2.88]
[1764043992153,7.21588656,138.12,138.05,2.88]
[1764043992353,2.06,138.1,138.05,2.88]
[1764043993061,2.11448775,138.09,138.06,2.93478646]
[1764043994357,0.05448775,138.09,138.06,2.93478646]
[1764043994970,0.05448775,138.09,138.06,9.45558646]
[1764043995164,0.05448775,138.09,138.07,2.88]
[1764043995760,0.05448775,138.09,138.08,2.88]
[1764043997563,2.06,138.15,138.1,3.06]
[1764043998361,2.06,138.15,138.08,3.06]
[1764043998660,2.06,138.15,138.06,40.0]
[1764043998661,2.10719401,138.13,138.11,3.06]
[1764044001871,0.04719401,138.13,138.11,9.5787]
[1764044002070,2.06,138.19,138.12,3.06]
[1764044002369,2.06,138.19,138.16,3.06]
[1764044002573,2.11,138.21,138.16,3.06]
[1764044003068,2.15603778,138.2,138.17,3.11316595]
[1764044003264,2.15603778,138.2,138.17,0.05316595]
[1764044005366,0.04603778,138.2,138.18,3.06]
[1764044009566,2.15603778,138.2,138.18,3.06]
[1764044010060,2.15603778,138.2,138.17,0.05316595]
[1764044010266,2.15603778,138.2,138.17,3.11316595]
[1764044010973,2.15603778,138.2,138.17,0.05316595]
[1764044010974,2.11,138.19,138.17,0.05316595]
[1764044012172,8.6252,138.19,138.17,0.05316595]
[1764044012567,2.11,138.18,138.17,0.05316595]
[1764044013867,8.6252,138.19,138.17,3.11316595]
[1764044014278,8.6252,138.19,138.17,0.05316595]
[1764044014566,2.11,138.18,138.17,0.05316595]
[1764044019784,6.56093778,138.2,138.17,3.11316595]
[1764044019785,0.04603778,138.2,138.17,3.11316595]
[1764044020781,0.04603778,138.2,138.18,3.06]
[1764044022188,0.04603778,138.2,138.19,3.06]
[1764044023790,6.5126,138.25,138.19,3.06]
[1764044023990,6.5126,138.25,138.2,3.06]
[1764044023991,8.6626,138.25,138.2,3.06]
[1764044024677,2.15,138.24,138.2,3.06]
[1764044024877,2.15,138.24,138.21,3.11275666]
[1764044025280,8.6626,138.25,138.21,3.11275666]
[1764044025480,2.15,138.24,138.21,3.11275666]
[1764044026288,8.6626,138.25,138.21,3.11275666]
[1764044026594,2.15,138.24,138.21,3.11275666]
[1764044027594,2.15,138.24,138.21,0.05275666]
[1764044030180,2.14,138.22,138.21,0.05275666]
[1764044030787,2.14,138.29,138.24,3.04]
[1764044031390,8.6509,138.28,138.25,0.0463416]
[1764044031593,2.14,138.27,138.25,0.0463416]
[1764044032181,2.14,138.27,138.25,3.0863416]
[1764044033192,6.5099,138.3,138.25,3.0863416]
[1764044033395,2.14,138.29,138.25,3.0863416]
[1764044034396,2.14,138.28,138.25,3.0863416]
[1764044036497,6.5105,138.29,138.25,3.0863416]
[1764044036498,8.6505,138.29,138.25,3.0863416]
[1764044038590,8.6505,138.29,138.26,8.32]
[1764044038792,2.14,138.28,138.26,8.32]
[1764044039493,2.14,138.28,138.26,11.25]
[1764044039792,2.14,138.29,138.26,11.25]
[1764044040298,2.14,138.3,138.27,2.93]
[1764044042404,8.6497,138.31,138.27,2.93]
[1764044042704,2.14,138.31,138.27,2.93]
[1764044043301,2.14,138.31,138.26,11.25]
[1764044043598,2.14,138.31,138.27,2.93]
[1764044043805,2.14,138.3,138.27,2.93]
[1764044044006,2.14,138.33,138.27,2.93]
[1764044044204,2.14,138.33,138.3,2.93]
[1764044045201,8.6488,138.33,138.3,2.93]
[1764044045400,2.14,138.32,138.3,2.93]
[1764044046109,8.6488,138.33,138.3,2.93]
[1764044047410,2.14,138.33,138.3,2.93]
[1764044047814,26.88,138.36,138.3,2.93]
[1764044048015,2.14,138.35,138.3,2.93]
[1764044049110,2.14,138.34,138.3,2.93]
[1764044049311,2.14,138.33,138.3,2.93]
[1764044049514,2.14,138.33,138.29,2.97698275]
[1764044050013,2.14,138.32,138.29,2.97698275]
[1764044050605,2.06070012,138.34,138.29,2.97698275]
[1764044050606,8.6478,138.35,138.29,2.97698275]
[1764044052211,2.14,138.34,138.3,2.93]
[1764044052816,24.74,138.36,138.31,2.93]
[1764044053016,2.14,138.35,138.32,2.98336091]
[1764044054616,2.14,138.35,138.32,0.05336091]
[1764044055114,8.6475,138.35,138.32,0.05336091]
[1764044055310,2.14,138.34,138.32,0.05336091]
[1764044056505,8.6481,138.34,138.32,0.05336091]
[1764044056710,2.14,138.33,138.32,0.05336091]
[1764044057417,2.15,138.31,138.26,3.0]
[1764044058406,0.04702889,138.3,138.27,3.04964682]
[1764044058611,2.19702889,138.3,138.27,3.04964682]
[1764044061708,0.04702889,138.3,138.27,3.04964682]
[1764044064115,0.04702889,138.3,138.28,3.0]
[1764044064616,125.9651,138.36,138.31,3.0]
[1764044064617,2.19,138.36,138.31,3.0]
[1764044064919,2.19,138.35,138.29,43.0]
[1764044065314,2.19,138.33,138.29,3.0]
[1764044065619,2.19,138.33,138.3,0.05328208]
[1764044066614,8.6985,138.33,138.3,0.05328208]
[1764044066814,2.19,138.32,138.3,0.05328208]
[1764044068423,2.19,138.31,138.3,0.05328208]
[1764044074120,6.509,138.32,138.3,3.05328208]
[1764044074325,8.699,138.32,138.3,3.05328208]
[1764044074823,128.09210012,138.35,138.3,3.05328208]
[1764044074824,26.99,138.35,138.3,3.05328208]
[1764044075124,6.71792819,138.36,138.3,3.05328208]
[1764044075125,2.19,138.37,138.3,3.05328208]
[1764044075325,2.19,138.37,138.33,3.0]
[1764044076528,2.19,138.36,138.32,0.05327832]
[1764044076727,2.19,138.36,138.32,3.05327832]
[1764044080029,2.19,138.35,138.32,3.05327832]
[1764044080223,6.71792819,138.39,138.35,3.0]
[1764044080422,2.19,138.4,138.36,0.05107774]
[1764044080629,2.19,138.4,138.36,3.05107774]
[1764044081524,2.19,138.42,138.36,3.05107774]
[1764044082429,2.19,138.42,138.37,3.0]
[1764044083022,2.19,138.42,138.37,9.5064]
[1764044083222,8.6935,138.44,138.38,3.0]
[1764044083423,8.6935,138.44,138.4,0.04890182]
[1764044083623,8.6935,138.44,138.4,3.04890182]
[1764044083825,2.19,138.43,138.4,3.04890182]
[1764044084031,8.6935,138.44,138.4,3.04890182]
[1764044084229,2.19,138.44,138.4,3.04890182]
[1764044084630,24.8,138.45,138.4,3.04890182]
[1764044084831,26.99,138.45,138.4,3.04890182]
[1764044085429,2.19,138.44,138.4,3.04890182]
[1764044086823,8.6933,138.44,138.4,3.04890182]
[1764044087225,2.19,138.42,138.4,0.04890182]
[1764044087932,8.6945,138.42,138.4,0.04890182]
[1764044090738,2.19,138.41,138.4,0.04890182]
[1764044092724,2.19,138.39,138.35,2.97]
[1764044093735,0.0525098,138.38,138.36,3.01632774]
[1764044100444,2.2425098,138.38,138.36,0.04632774]
[1764044101436,2.2425098,138.38,138.36,3.10632774]
[1764044102544,2.2425098,138.38,138.36,0.04632774]
[1764044103640,2.19,138.36,138.29,3.06]
[1764044104043,4.25070012,138.35,138.29,3.06]
[1764044104839,4.25070012,138.35,138.27,2.06070012]
[1764044104840,0.05299699,138.33,138.31,0.0490386]
[1764044105046,0.05299699,138.33,138.31,3.1090386]
[1764044106052,2.24299699,138.33,138.31,0.0490386]
[1764044107344,2.24299699,138.33,138.31,11.4290386]
[1764044108349,2.19,138.32,138.31,11.4290386]
[1764044119350,6.56149699,138.33,138.31,14.4690386]
[1764044119645,8.75149699,138.33,138.31,11.4290386]
[1764044120050,8.75149699,138.33,138.31,14.4690386]
[1764044120256,8.75149699,138.33,138.31,11.4290386]
[1764044121254,2.19,138.32,138.31,11.4290386]
[1764044121856,2.19,138.32,138.31,0.0490386]
[1764044122047,2.19,138.3,138.27,3.04]
[1764044123156,8.75228944,138.3,138.27,3.0864032]
[1764044123648,8.7004,138.29,138.27,3.0864032]
[1764044123851,2.19,138.28,138.27,0.0464032]
[1764044124456,2.19,138.27,138.23,3.04]
[1764044125355,0.05384105,138.26,138.24,12.14116877]
[1764044125561,2.19,138.25,138.24,9.09851121]
[1764044126856,8.75564105,138.26,138.24,9.09851121]
[1764044129252,0.05384105,138.26,138.24,12.13851121]
[1764044129456,2.24384105,138.26,138.24,12.13851121]
[1764044132857,8.75564105,138.26,138.24,12.13851121]
[1764044134658,0.05384105,138.26,138.25,3.04]
[1764044134861,3.22092789,138.32,138.25,3.04]
[1764044135066,24.76,138.31,138.25,3.04]
[1764044135563,24.76,138.31,138.26,3.04]
[1764044135967,0.05319918,138.3,138.28,3.04]
[1764044146668,0.05319918,138.3,138.27,0.05367925]
[1764044146669,2.29319918,138.3,138.27,0.05367925]
[1764044147068,0.05319918,138.3,138.27,2.99367925]
[1764044149574,2.30319918,138.3,138.27,2.99367925]
[1764044151075,8.81309918,138.3,138.27,2.99367925]
[1764044155473,0.05319918,138.3,138.27,2.99367925]
[1764044160290,6.56309918,138.3,138.27,2.99367925]
[1764044161091,6.5103,138.29,138.27,2.99367925]
[1764044161793,2.25,138.28,138.27,0.05367925]
[1764044162183,6.5103,138.29,138.27,0.05367925]
[1764044162484,8.7603,138.29,138.27,3.01367925]
[1764044162686,6.5103,138.29,138.27,3.01367925]
[1764044162882,8.7603,138.29,138.27,3.01367925]
[1764044164988,2.25,138.28,138.27,0.05367925]
[1764044166690,2.30319918,138.3,138.27,3.01367925]
[1764044167492,8.81309918,138.3,138.27,3.01367925]
[1764044169399,2.30319918,138.3,138.27,3.01367925]
[1764044169596,0.05319918,138.3,138.27,3.01367925]
[1764044171298,2.30319918,138.3,138.27,3.01367925]
[1764044171804,0.05319918,138.3,138.27,3.01367925]
[1764044174897,8.81309918,138.3,138.27,3.01367925]
[1764044175113,2.25,138.29,138.27,3.01367925]